fUST/lending_fUST_20250916
["ID","MTS","AMOUNT","RATE_DAILY","PERIOD"]
[385659065,1757953832402,-500.0,0.000228,2]
[385659067,1757953832412,-500.0,0.000228,2]
[385659069,1757953832422,-666.0,0.00022894,2]
[385659071,1757953832431,-10592.81255375,0.00023198,2]
[385659073,1757953832440,-1000.0,0.00023348,2]
[385659075,1757953832450,-500.0,0.00023348,2]
[385659077,1757953832459,-1000.0,0.00023348,2]
[385659079,1757953832469,-1000.0,0.000235,2]
[385659081,1757953832478,-164.75,0.00023702,2]
[385659083,1757953832487,-928.0,0.00023739,2]
[385659085,1757953832497,-500.0,0.00023896,2]
[385659087,1757953832506,-500.0,0.00023896,2]
[385659089,1757953832515,-1000.0,0.00023941,2]
[385659090,1757953832525,-1000.0,0.00023941,2]
[385659092,1757953832534,-1000.0,0.00023941,2]
[385659094,1757953832543,-1000.0,0.00023941,2]
[385659096,1757953832552,-1000.0,0.00023941,2]
[385659098,1757953832562,-1000.0,0.00023941,2]
[385659100,1757953832571,-1000.0,0.00023941,2]
[385659102,1757953832580,-1000.0,0.00023941,2]
[385659104,1757953832589,-734.13177072,0.00023941,2]
[385659106,1757953832598,-162.35714063,0.00023941,2]
[385659108,1757953832607,-500.0,0.00023964,2]
[385659110,1757953832616,-500.0,0.00023964,2]
[385659112,1757953832626,-927.0,0.00024061,2]
[385659114,1757953832636,-500.0,0.00024321,2]
[385659116,1757953832645,-160.0,0.00024353,2]
[385659118,1757953832654,-217.82061966,0.00024362,2]
[385659120,1757953832664,-233.24851325,0.00024362,2]
[385659122,1757953832672,-160.0,0.00024362,2]
[385659124,1757953832681,-847.45018724,0.00024362,2]
[385659126,1757953832691,-160.0,0.00024365,2]
[385659127,1757953832703,-420.0,0.00024366,2]
[385659129,1757953832713,-8703.55424355,0.00024462,2]
[385659131,1757953832722,-153.0,0.00024478,2]
[385659133,1757953832732,-1430.0,0.00024479,2]
[385659135,1757953832742,-383.73,0.0002449,10]
[385659137,1757953832751,-731.75,0.0002449,10]
[385659139,1757953832761,-609.79,0.0002449,10]
[385659141,1757953832771,-500.0,0.00024499,2]
[385659143,1757953832784,-333.09998479,0.00024499,2]
[385659145,1757953832794,-441.27176881,0.00024499,2]
[385659147,1757953832803,-1508.0897811,0.000245,2]
[385659492,1757953837799,-309.02593894,0.000245,2]
[385659493,1757953837852,-27876.3041055,0.000245,2]
[385659707,1757953839891,-8992.60000006,0.000245,2]
[385660091,1757953844449,-2368.01150499,0.000245,2]
[385660225,1757953845873,-55240.47818202,0.000245,2]
[385660226,1757953845883,-508.16,0.00024533,10]
[385660227,1757953845892,-1814.28,0.0002454,2]
[385660228,1757953845901,-24630.49968026,0.00024541,2]
[385660229,1757953845910,-295001.33266954,0.00024543,2]
[385662162,1757954204168,56000.0,0.00030178,120]
[385662166,1757954452489,5000.0,0.00020526,2]
[385662167,1757954476324,5000.0,0.00020526,2]
[385662168,1757954499853,5000.0,0.00020526,2]
[385662169,1757954523613,5000.0,0.00020526,2]
[385662170,1757954546411,4396.66206903,0.00020526,2]
[385662173,1757954632197,5000.0,0.00020526,2]
[385662174,1757954734195,268.03107247,0.00020526,2]
[385662175,1757954845102,-168.0,0.00020903,2]
[385662176,1757954845124,-215.53171103,0.00021114,2]
[385662179,1757954969088,-1428.03063548,0.00020903,2]
[385662180,1757955016959,413.0,0.00025185,120]
[385662181,1757955018249,413.0,0.00026444,120]
[385662240,1757955032054,-3571.96936452,0.00020903,2]
[385662242,1757955032064,-1200.0,0.00021537,2]
[385662244,1757955032074,-1200.0,0.00021538,2]
[385662246,1757955032084,-300.0,0.00021538,2]
[385662248,1757955032098,-300.0,0.00021538,2]
[385662251,1757955032108,-300.0,0.00021538,2]
[385662254,1757955032117,-300.0,0.00021538,2]
[385662255,1757955032127,-300.0,0.00021538,2]
[385662256,1757955032136,-287.5312191,0.00021543,2]
[385662257,1757955032145,-528.6832238,0.00022774,2]
[385662258,1757955032154,-10592.81255375,0.00023203,2]
[385662259,1757955032163,-5625.14332727,0.00023203,2]
[385662260,1757955032173,-500.0,0.00023358,2]
[385662261,1757955032183,-395.2911753,0.00023358,2]
[385662262,1757955032197,-500.0,0.00023358,2]
[385662263,1757955032210,-500.0,0.00023358,2]
[385662264,1757955032219,-500.0,0.00023358,2]
[385662265,1757955032228,-500.0,0.00023358,2]
[385662266,1757955032239,-500.0,0.00023358,2]
[385662267,1757955032248,-500.0,0.00023358,2]
[385662268,1757955032258,-183.66507338,0.00023358,2]
[385662269,1757955032268,-500.0,0.00023358,2]
[385662270,1757955032277,-500.0,0.00023358,2]
[385662271,1757955032286,-500.0,0.00023358,2]
[385662272,1757955032296,-500.0,0.00023358,2]
[385662273,1757955032306,-500.0,0.00023358,2]
[385662275,1757955032315,-500.0,0.00023358,2]
[385662277,1757955032325,-500.0,0.00023358,2]
[385662279,1757955032335,-500.0,0.00023358,2]
[385662281,1757955032344,-158.13894147,0.00023358,2]
[385662283,1757955032353,-500.0,0.00023358,2]
[385662285,1757955032363,-500.0,0.00023358,2]
[385662287,1757955032372,-500.0,0.00023358,2]
[385662289,1757955032382,-500.0,0.00023358,2]
[385662291,1757955032391,-500.0,0.00023358,2]
[385662293,1757955032400,-500.0,0.00023358,2]
[385662295,1757955032409,-500.0,0.00023358,2]
[385662297,1757955032418,-500.0,0.00023358,2]
[385662299,1757955032428,-500.0,0.00023358,2]
[385662301,1757955032437,-500.0,0.00023358,2]
[385662303,1757955032447,-500.0,0.00023358,2]
[385662305,1757955032458,-500.0,0.00023358,2]
[385662307,1757955032468,-417.64933107,0.00023358,2]
[385662309,1757955032478,-500.0,0.00023358,2]
[385662311,1757955032489,-500.0,0.00023358,2]
[385662313,1757955032499,-500.0,0.00023358,2]
[385662315,1757955032511,-500.0,0.00023358,2]
[385662318,1757955032523,-500.0,0.00023358,2]
[385662320,1757955032535,-500.0,0.00023358,2]
[385662321,1757955032546,-500.0,0.00023358,2]
[385662324,1757955032567,-500.0,0.00023358,2]
[385662326,1757955032579,-500.0,0.00023358,2]
[385662328,1757955032592,-500.0,0.00023358,2]
[385662330,1757955032605,-500.0,0.00023358,2]
[385662332,1757955032616,-500.0,0.00023358,2]
[385662334,1757955032627,-500.0,0.00023358,2]
[385662336,1757955032639,-500.0,0.00023358,2]
[385662337,1757955032652,-500.0,0.00023358,2]
[385662339,1757955032663,-500.0,0.00023358,2]
[385662341,1757955032675,-500.0,0.00023358,2]
[385662344,1757955032686,-500.0,0.00023358,2]
[385662346,1757955032697,-500.0,0.00023358,2]
[385662348,1757955032708,-500.0,0.00023358,2]
[385662350,1757955032718,-500.0,0.00023358,2]
[385662352,1757955032728,-500.0,0.00023358,2]
[385662354,1757955032737,-500.0,0.00023358,2]
[385662356,1757955032747,-500.0,0.00023358,2]
[385662358,1757955032757,-500.0,0.00023358,2]
[385662360,1757955032766,-500.0,0.00023358,2]
[385662362,1757955032775,-500.0,0.00023358,2]
[385662364,1757955032785,-500.0,0.00023358,2]
[385662365,1757955032795,-500.0,0.00023358,2]
[385662368,1757955032811,-500.0,0.00023358,2]
[385662370,1757955032820,-593.12260159,0.00023358,2]
[385662371,1757955032829,-500.0,0.00023358,2]
[385662373,1757955032839,-500.0,0.00023358,2]
[385662375,1757955032848,-500.0,0.00023358,2]
[385662377,1757955032858,-500.0,0.00023358,2]
[385662380,1757955032868,-500.0,0.00023358,2]
[385662381,1757955032878,-500.0,0.00023358,2]
[385662383,1757955032888,-499.99999999,0.00023358,2]
[385662385,1757955032898,-500.0,0.00023358,2]
[385662387,1757955032908,-500.0,0.00023358,2]
[385662389,1757955032917,-500.0,0.00023358,2]
[385662392,1757955032927,-300.0,0.00023358,2]
[385662394,1757955032936,-500.0,0.00023362,2]
[385662396,1757955032945,-10000.0,0.00023363,2]
[385662398,1757955032955,-500.0,0.00023373,2]
[385662400,1757955032964,-500.0,0.00023373,2]
[385662402,1757955032973,-501.52711983,0.00023373,2]
[385662404,1757955032982,-502.12426079,0.00023373,2]
[385662406,1757955032991,-500.0,0.00023373,2]
[385662407,1757955033000,-420.0,0.00023416,2]
[385662410,1757955033010,-420.0,0.00023416,2]
[385662412,1757955033020,-153.0,0.00023778,2]
[385662414,1757955033029,-153.0,0.00023878,2]
[385662416,1757955033039,-1000.0,0.00023921,2]
[385662417,1757955033048,-1000.0,0.00023921,2]
[385662420,1757955033061,-160.0,0.00024302,2]
[385662422,1757955033071,-847.45018724,0.00024302,2]
[385662423,1757955033082,-217.82061966,0.00024302,2]
[385662425,1757955033091,-1291.63829719,0.00024368,2]
[385662427,1757955033101,-1035.32734443,0.00024428,2]
[385662429,1757955033111,-151.0,0.00024428,2]
[385662432,1757955033120,-500.0,0.00024428,2]
[385662433,1757955033130,-500.0,0.00024428,2]
[385662435,1757955033140,-151.0,0.00024428,2]
[385662437,1757955033150,-500.0,0.00024428,2]
[385662440,1757955033160,-151.0,0.00024428,2]
[385662441,1757955033169,-500.0,0.00024428,2]
[385662443,1757955033178,-151.0,0.00024428,2]
[385662445,1757955033188,-500.0,0.00024428,2]
[385662447,1757955033201,-151.0,0.00024428,2]
[385662449,1757955033211,-500.0,0.00024428,2]
[385662451,1757955033220,-500.0,0.00024428,2]
[385662453,1757955033231,-500.0,0.00024428,2]
[385662455,1757955033240,-500.0,0.00024428,2]
[385662457,1757955033249,-500.0,0.00024428,2]
[385662459,1757955033258,-500.0,0.00024428,2]
[385662461,1757955033267,-500.0,0.00024428,2]
[385662463,1757955033277,-500.0,0.00024428,2]
[385662465,1757955033286,-500.0,0.00024428,2]
[385662467,1757955033295,-162.380719,0.00024428,2]
[385662469,1757955033307,-423.47,0.00024433,10]
[385662471,1757955033316,-352.89,0.00024433,10]
[385662473,1757955033326,-294.07,0.00024433,10]
[385662474,1757955033336,-1759.52,0.00024442,2]
[385662476,1757955033346,-500.0,0.00024442,2]
[385662478,1757955033355,-196.75724685,0.00024442,2]
[385662480,1757955033364,-378.19727908,0.00024442,2]
[385662482,1757955033374,-158.89023817,0.00024442,2]
[385662485,1757955033384,-173523.06897924,0.00024443,2]
[385662587,1757955038007,-15089.21314345,0.00024443,2]
[385662600,1757955040002,-168.9510212,0.00024443,2]
[385663317,1757956232223,-1710.33883621,0.0002268,2]
[385663318,1757956232233,-300.0,0.00022909,2]
[385663319,1757956232242,-300.0,0.00022909,2]
[385663320,1757956232251,-12945.56876463,0.0002291,2]
[385663321,1757956232260,-310.25647085,0.00023375,2]
[385663322,1757956232269,-10592.81255375,0.00024148,2]
[385663323,1757956232278,-826.40957097,0.00024257,2]
[385663444,1757956238075,-500.0,0.00024147,2]
[385663445,1757956238084,-520.40723038,0.00024147,2]
[385663446,1757956238093,-545.3221665,0.00024147,2]
[385663447,1757956238102,-500.0,0.00024147,2]
[385663448,1757956238111,-500.0,0.00024147,2]
[385663449,1757956238120,-500.0,0.00024147,2]
[385663450,1757956238130,-109.56564223,0.00024147,2]
[385663451,1757956238179,-390.43435777,0.00024147,2]
[385663452,1757956238188,-186.66564223,0.00024147,2]
[385663552,1757956243405,-313.33435777,0.00024147,2]
[385663556,1757956243415,-500.0,0.00024147,2]
[385663559,1757956243424,-286.81148163,0.00024147,2]
[385663561,1757956243433,-500.0,0.00024147,2]
[385663563,1757956243442,-1033.31063776,0.00024267,2]
[385663565,1757956243452,-245.06,0.00024333,10]
[385663567,1757956243461,-1707.04,0.00024342,2]
[385663569,1757956243470,-461.22316672,0.00024342,2]
[385663571,1757956243479,-382.97976521,0.00024342,2]
[385663573,1757956243488,-203.4402225,0.00024342,2]
[385663575,1757956243497,-4472.04908128,0.00024343,2]
[385663577,1757956243507,-104631.93325885,0.00024343,2]
[385663579,1757956243518,-93703.15310876,0.00024343,2]
[385663850,1757956246300,-2151.1582066,0.00022809,2]
[385663851,1757956246312,-703.1,0.00022809,2]
[385663852,1757956246324,-534.40996947,0.00022809,2]
[385663853,1757956246510,-1995.61166,0.00022809,2]
[385663855,1757956246522,-16488.55360485,0.00022809,2]
[385663872,1757956939157,1000.0,0.00027,120]
[385663877,1757957361111,-1428.03063548,0.00021251,2]
[385663905,1757957432568,-1154.15611752,0.00021038,2]
[385663907,1757957432580,-2417.813247,0.00021038,2]
[385663910,1757957432589,-550.74052473,0.00021683,2]
[385663912,1757957432599,-1200.0,0.00022462,2]
[385663915,1757957432610,-445.04622827,0.00022463,2]
[385663918,1757957432622,-754.95377173,0.00022463,2]
[385663922,1757957432631,-300.0,0.00022463,2]
[385663926,1757957432640,-300.0,0.00022463,2]
[385663929,1757957432649,-300.0,0.00022463,2]
[385663933,1757957432658,-300.0,0.00022463,2]
[385663937,1757957432667,-300.0,0.00022463,2]
[385663941,1757957432677,-10000.0,0.00022464,2]
[385663945,1757957432686,-217.31728753,0.0002258,2]
[385663948,1757957432696,-283.419958,0.00022939,2]
[385663951,1757957432706,-168.0,0.00023218,2]
[385663954,1757957432714,-275.37026237,0.00023422,2]
[385663957,1757957432724,-778.815109,0.00023441,2]
[385663960,1757957432733,-389.4075545,0.00023441,2]
[385663963,1757957432742,-389.4075545,0.00023441,2]
[385663966,1757957432751,-500.0,0.00023473,2]
[385663969,1757957432760,-500.0,0.00023473,2]
[385663971,1757957432769,-500.0,0.00023473,2]
[385663973,1757957432779,-500.0,0.00023473,2]
[385663974,1757957432788,-500.0,0.00023473,2]
[385663975,1757957432797,-500.0,0.00023473,2]
[385663976,1757957432806,-500.0,0.00023499,2]
[385663978,1757957432815,-500.0,0.00023499,2]
[385663980,1757957432824,-500.0,0.00023499,2]
[385663982,1757957432833,-171.62546823,0.00023499,2]
[385663983,1757957432842,-264.82709426,0.00023499,2]
[385663985,1757957432851,-500.0,0.00023499,2]
[385663987,1757957432861,-500.0,0.00023499,2]
[385663989,1757957432870,-309.56484236,0.00023499,2]
[385663991,1757957432879,-500.0,0.00023499,2]
[385663992,1757957432889,-500.0,0.00023499,2]
[385663993,1757957432899,-500.0,0.00023499,2]
[385663994,1757957432908,-500.0,0.00023499,2]
[385663995,1757957432917,-413.26554107,0.00023499,2]
[385663996,1757957432926,-500.0,0.00023499,2]
[385663997,1757957432936,-500.0,0.00023499,2]
[385663998,1757957432946,-194.11712848,0.00023499,2]
[385663999,1757957432955,-389.4075545,0.000235,2]
[385664000,1757957432965,-389.4075545,0.000235,2]
[385664001,1757957432974,-389.4075545,0.00023541,2]
[385664002,1757957432983,-389.4075545,0.00023541,2]
[385664003,1757957432994,-162.380719,0.0002359,2]
[385664004,1757957433003,-18603.8837,0.0002359,2]
[385664005,1757957433013,-322.8562167,0.00023603,2]
[385664006,1757957433022,-203.43697967,0.00023603,2]
[385664007,1757957433032,-367.34904352,0.00023603,2]
[385664008,1757957433042,-389.4075545,0.00023605,2]
[385664009,1757957433052,-389.4075545,0.00023605,2]
[385664010,1757957433061,-389.4075545,0.00023605,2]
[385664011,1757957433071,-389.4075545,0.00023605,2]
[385664012,1757957433085,-389.4075545,0.00023605,2]
[385664013,1757957433094,-389.4075545,0.00023605,2]
[385664014,1757957433104,-389.4075545,0.00023605,2]
[385664015,1757957433115,-389.4075545,0.00023605,2]
[385664016,1757957433125,-389.4075545,0.00023605,2]
[385664017,1757957433135,-556.1829542,0.00023605,2]
[385664018,1757957433144,-500.0,0.00023605,2]
[385664019,1757957433155,-168.0,0.00023625,2]
[385664020,1757957433165,-500.0,0.00023673,2]
[385664021,1757957433174,-168.0,0.00023753,2]
[385664022,1757957433184,-901.0,0.000238,2]
[385664023,1757957433194,-575.87428059,0.00023806,2]
[385664024,1757957433203,-901.0,0.00023858,2]
[385664025,1757957433213,-168.0,0.00023866,2]
[385664026,1757957433223,-500.0,0.00023873,2]
[385664027,1757957433232,-168.0,0.00023873,2]
[385664028,1757957433242,-500.0,0.00023879,2]
[385664029,1757957433252,-927.0,0.00023888,2]
[385664030,1757957433262,-389.4075545,0.000239,2]
[385664031,1757957433271,-389.4075545,0.000239,2]
[385664032,1757957433282,-519.0,0.000239,2]
[385664033,1757957433292,-151.0,0.000239,2]
[385664034,1757957433303,-151.0,0.000239,2]
[385664035,1757957433313,-168.0,0.00023938,2]
[385664036,1757957433322,-901.0,0.00023997,2]
[385664037,1757957433332,-389.4075545,0.00024,2]
[385664038,1757957433341,-389.4075545,0.00024,2]
[385664039,1757957433351,-151.0,0.00024,2]
[385664040,1757957433361,-151.0,0.00024,2]
[385664041,1757957433371,-163.0,0.00024,2]
[385664042,1757957433381,-151.0,0.00024,2]
[385664043,1757957433390,-157.0,0.00024,2]
[385664044,1757957433400,-151.0,0.00024,2]
[385664045,1757957433409,-151.0,0.00024,2]
[385664046,1757957433419,-229.78883637,0.00024,2]
[385664047,1757957433428,-168.0,0.00024011,2]
[385664048,1757957433437,-1000.0,0.00024021,2]
[385664049,1757957433448,-1000.0,0.00024021,2]
[385664050,1757957433458,-1000.0,0.00024021,2]
[385664051,1757957433468,-1000.0,0.00024021,2]
[385664052,1757957433478,-1000.0,0.00024021,2]
[385664053,1757957433487,-1568.09312084,0.00024143,2]
[385664054,1757957433497,-500.0,0.00024153,2]
[385664055,1757957433506,-7240.09639292,0.00024155,2]
[385664056,1757957433516,-519.0,0.00024174,2]
[385664057,1757957433525,-151.0,0.00024174,2]
[385664058,1757957433535,-1000.0,0.00024221,2]
[385664059,1757957433544,-1656.75,0.00024228,2]
[385664060,1757957433554,-2236.02454064,0.00024243,2]
[385664061,1757957433563,-32974.1847475,0.00024243,2]
[385664063,1757957438479,-204.22,0.0002358,10]
[385664064,1757957438488,-288.60935909,0.000239,2]
[385664065,1757957438497,-151.0,0.000239,2]
[385664066,1757957438506,-151.0,0.000239,2]
[385664067,1757957438515,-157.0,0.00024174,2]
[385664068,1757957438525,-6763.37013019,0.00024243,2]
[385664069,1757957438536,-104845.88032037,0.00024243,2]
[385664070,1757957438551,-2455.79459003,0.00024243,2]
[385664071,1757957438561,-8530.87219,0.00024243,2]
[385664072,1757957438572,-38502.17455318,0.00024243,2]
[385664073,1757957438584,-5258.75491547,0.00024243,2]
[385664074,1757957438595,-287.70733921,0.00024243,2]
[385664260,1757957443908,-268.14061567,0.00023472,2]
[385664262,1757957443918,-354.90190317,0.00023472,2]
[385664265,1757957443928,-151.0,0.000239,2]
[385664267,1757957443937,-257.14433046,0.00024154,2]
[385664269,1757957443947,-225.99935169,0.00024154,2]
[385664271,1757957443958,-760.98047239,0.00024243,2]
[385666259,1757957880684,282.03,0.00017982,2]
[385666271,1757958332344,5000.0,0.00020526,2]
[385666272,1757958356164,5000.0,0.00020526,2]
[385666273,1757958527200,1581.76281513,0.0002055,2]
[385666274,1757958559137,-165.57200078,0.00021636,2]
[385666293,1757958632148,-283.419958,0.00021476,2]
[385666294,1757958632158,-48.07654392,0.00021636,2]
[385666295,1757958632167,-666.0,0.00021727,2]
[385666296,1757958632177,-682.57129809,0.00021906,2]
[385666297,1757958632188,-2074.87097782,0.00021906,2]
[385666623,1757958637868,-1721.12820149,0.00021906,2]
[385666624,1757958637878,-1127.8266031,0.00021943,2]
[385666625,1757958637888,-1200.0,0.00021992,2]
[385666626,1757958637898,-502.740292,0.00021993,2]
[385666627,1757958637909,-159.04318,0.00022215,2]
[385666628,1757958637918,-229.16109305,0.0002236,2]
[385666629,1757958637929,-219.14786022,0.00023052,2]
[385666630,1757958637939,-492.99670786,0.00023126,2]
[385666631,1757958637948,-300.0,0.00023127,2]
[385666632,1757958637958,-300.0,0.00023127,2]
[385666633,1757958637968,-180.0,0.00023127,2]
[385666634,1757958637977,-33883.83638612,0.00023127,2]
[385666636,1757958637989,-16116.16361388,0.00023127,2]
[385666638,1757958637999,-1200.0,0.00023128,2]
[385666639,1757958638008,-8796.545593,0.00023151,2]
[385666640,1757958638017,-500.0,0.00023173,2]
[385666641,1757958638028,-500.0132408,0.00023173,2]
[385666642,1757958638039,-324.28321046,0.00023173,2]
[385666643,1757958638047,-180.00103132,0.00023182,2]
[385666644,1757958638058,-308.19954619,0.00023182,2]
[385666645,1757958638068,-624.64989515,0.00023183,2]
[385666650,1757958639909,-10783.49023945,0.00023183,2]
[385666651,1757958639919,-151.0,0.00023183,2]
[385666652,1757958639928,-151.0,0.00023183,2]
[385666653,1757958639938,-278.87203735,0.00023183,2]
[385666654,1757958639947,-383.91618706,0.00023709,2]
[385666655,1757958639956,-500.0,0.00023721,2]
[385666656,1757958639965,-302.656153,0.00023742,2]
[385666657,1757958639974,-1168.9748494,0.00023742,2]
[385666658,1757958639984,-288.5585835,0.00023742,2]
[385666659,1757958639993,-161.8674926,0.00023742,2]
[385666660,1757958640001,-295.9775201,0.00023742,2]
[385666661,1757958640011,-161.8674926,0.00023742,2]
[385666662,1757958640019,-1183.48272,0.00023742,2]
[385666663,1757958640029,-152.4131108,0.00023742,2]
[385666664,1757958640038,-310.5963961,0.00023742,2]
[385666665,1757958640047,-161.8674926,0.00023742,2]
[385666666,1757958640056,-295.9775201,0.00023742,2]
[385666667,1757958640066,-295.9775201,0.00023742,2]
[385666668,1757958640075,-161.8674926,0.00023742,2]
[385666669,1757958640084,-161.8674926,0.00023742,2]
[385666670,1757958640094,-161.8674926,0.00023742,2]
[385666671,1757958640103,-161.8674926,0.00023742,2]
[385666672,1757958640112,-161.8674926,0.00023742,2]
[385666673,1757958640121,-323.5916804,0.00023742,2]
[385666674,1757958640130,-161.8674926,0.00023742,2]
[385666675,1757958640139,-161.8674926,0.000238,2]
[385666676,1757958640148,-161.8674926,0.000238,2]
[385666677,1757958640158,-161.8674926,0.000238,2]
[385666678,1757958640167,-268.03107247,0.00023806,2]
[385666679,1757958640176,-500.0,0.00023806,2]
[385666680,1757958640185,-1254.47449668,0.00024043,2]
[385666681,1757958640195,-4826.73092862,0.00024073,2]
[385666682,1757958640203,-500.0,0.0002408,2]
[385666683,1757958640212,-170.18,0.00024133,10]
[385666684,1757958640221,-850.94,0.00024133,10]
[385666685,1757958640231,-373.5203548,0.00024137,2]
[385666686,1757958640239,-1608.55,0.00024142,2]
[385666687,1757958640249,-1118.01227032,0.00024143,2]
[385666688,1757958640258,-14739.01144488,0.00024143,2]
[385666689,1757958640391,-1141.272,0.00024143,2]
[385667107,1757959684471,197.42,0.00015984,2]
[385667144,1757959832280,-2384.99705648,0.00021371,2]
[385667146,1757959832289,-908.78689593,0.00021587,2]
[385667148,1757959832298,-394.83896378,0.00022472,2]
[385667150,1757959832307,-278.58272192,0.00022699,2]
[385667152,1757959832317,-250.07975607,0.000228,2]
[385667154,1757959832326,-500.0,0.00023373,2]
[385667156,1757959832335,-164.58057204,0.00023373,2]
[385667158,1757959832344,-300.0,0.00023399,2]
[385667160,1757959832353,-300.0,0.00023399,2]
[385667162,1757959832363,-1200.0,0.00023399,2]
[385667164,1757959832372,-1151.0,0.000234,2]
[385667166,1757959832381,-161.8674926,0.000234,2]
[385667168,1757959832391,-193.69037969,0.000234,2]
[385667169,1757959832400,-14877.26645158,0.000234,2]
[385667328,1757959840152,-500.0,0.00023399,2]
[385667330,1757959840162,-500.0,0.00023399,2]
[385667331,1757959840171,-155.32350017,0.00023399,2]
[385667333,1757959840180,-154.73399804,0.00023399,2]
[385667336,1757959840361,-37.8545436,0.00023399,2]
[385667337,1757959840370,-597.01537048,0.00023399,2]
[385667338,1757959840379,-500.0,0.00023399,2]
[385667339,1757959840388,-22824.3239131,0.000234,2]
[385667340,1757959840400,-71.66855814,0.000234,2]
[385667341,1757959840410,-10592.81255375,0.00023401,2]
[385667342,1757959840420,-2145.3233874,0.00023427,2]
[385667343,1757959840432,-8991.7776814,0.00023427,2]
[385667344,1757959840441,-3988.3418173,0.00023427,2]
[385667345,1757959840451,-8930.8111556,0.00023427,2]
[385667346,1757959840461,-215.73968233,0.00023472,2]
[385667347,1757959840471,-500.0,0.00023473,2]
[385667348,1757959840482,-500.0,0.00023473,2]
[385667349,1757959840491,-161.8674926,0.00023478,2]
[385667350,1757959840501,-408.0,0.00023892,2]
[385667351,1757959840510,-500.0,0.00023921,2]
[385667352,1757959840520,-1003.57959732,0.00023972,2]
[385667353,1757959840529,-1509.97866596,0.00024,2]
[385667354,1757959840538,-1432.4,0.00024033,3]
[385667355,1757959840547,-1562.36,0.00024041,2]
[385667356,1757959840557,-2701.09,0.00024042,2]
[385667357,1757959840566,-2701.09,0.00024042,2]
[385667358,1757959840575,-2701.09,0.00024042,2]
[385667359,1757959840585,-2701.09,0.00024042,2]
[385667360,1757959840594,-2701.09,0.00024042,2]
[385667361,1757959840603,-2701.09,0.00024042,2]
[385667362,1757959840613,-2701.09,0.00024042,2]
[385667363,1757959840623,-2701.09,0.00024042,2]
[385667364,1757959840633,-2514.02101631,0.00024042,2]
[385667406,1757959845258,-1961.979575,0.000238,2]
[385667407,1757959845267,-280.23,0.00024033,10]
[385667408,1757959845276,-187.06898369,0.00024042,2]
[385667409,1757959845285,-559.00613516,0.00024043,2]
[385667410,1757959845294,-151.0,0.00024043,7]
[385667411,1757959845303,-7576.35600823,0.00024043,2]
[385667412,1757959845314,-908.78923232,0.00024043,2]
[385667513,1757959846311,-304.05670005,0.00024043,2]
[385667518,1757959846364,-1291.23276847,0.00024043,2]
[385667519,1757959846375,-22985.52510829,0.00024043,2]
[385667521,1757959846387,-1101.14881583,0.00024043,2]
[385667688,1757961032555,-666.0,0.00022473,2]
[385667689,1757961032566,-1428.03063548,0.00022512,2]
[385667691,1757961032576,-634.9774484,0.0002274,2]
[385667692,1757961032586,-297.39487954,0.000228,2]
[385667693,1757961032595,-167.14963315,0.00022985,2]
[385667694,1757961032604,-300.0,0.00023414,2]
[385667695,1757961032614,-185.0,0.00023414,2]
[385667696,1757961032623,-1200.0,0.00023414,2]
[385667697,1757961032632,-300.0,0.00023414,2]
[385667698,1757961032643,-10592.81255375,0.00023415,2]
[385667700,1757961032652,-177.44615227,0.00023693,2]
[385667702,1757961032662,-9475.29558737,0.00023696,2]
[385667730,1757961038401,-504.32018305,0.00023696,2]